Cogmind - Beta 11.1 @@@ ROGUE MODE // 2022.04.23 @ 02:50:32 Player: Cracklepappy Result: Destroyed by P-80 Master with Gamma Rifle Performance ------------- Evolutions (8) 4000 Regions Visited (18) 3600 Robots Destroyed (245) 1225 Value Destroyed (9323) 9323 Prototype IDs (39) 780 Alien Tech Used (0) 0 Bonus (1999) 1999 TOTAL SCORE: 20927 Bonus ------- High Alert Combat Kills 743 Follower Combat Kills 820 Met Data Miner 300 Met Zhirov 300 Friendly Fire -164 Cogmind --------- Core Integrity 0/1450 Matter 80/300 Energy 99/100 System Corruption 17% Temperature Cool (0) Movement Core (50) Location -2/Research Parts ------- > --- POWER (3) -------- (None) > --- PROPULSION (5) --- (None) > --- UTILITY (12) ----- (None) > --- WEAPON (3) ------- (None) > --- INVENTORY (5) ---- Variable Charge Gun Compact HERF Cannon Enhanced Nova Cannon Enhanced Gauss Cannon Powered Hammer Peak State ------------ > --- POWER ------------ Micro Fission Core Micro Fission Core Micro Antimatter Reactor > --- PROPULSION ------- Improved Antigrav System Improved Gyrokinetic Inverter Improved Gyrokinetic Inverter Improved Linear Gravjet Combat Antigrav System > --- UTILITY ---------- Advanced Heat Sink Advanced Heat Sink Large Storage Unit Experimental Energy Well Experimental Sensor Array Advanced Terrain Scan Processor Improved Salvage Targeting Computer Advanced Target Analyzer Core Analyzer Armor Integrity Analyzer Advanced Reaction Control System System Shield > --- WEAPON ----------- Variable Charge Gun Variable Charge Gun Advanced Remote Datajack > --- INVENTORY -------- Quantum Reactor Centrium Wheel Improved Antigrav System Combat Antigrav System High-capacity Matter Pod Layered Light Armor Plating Improved Force Field Compact HERF Cannon KE Penetrator Enhanced Coil Gun Enhanced Gauss Cannon Improved Proton Missile Launcher Smartbomb Launcher Powered Hammer [Rating: 147] Favorites ----------- Power Heavy Ion Engine Engine Heavy Ion Engine Power Core Micro Fission Core Reactor Quantum Reactor Propulsion Light Treads Treads Light Treads Leg Carbon-fiber Leg Hover Unit Improved Gyrokinetic Inverter Utility Huge Storage Unit Device Advanced Heat Sink Storage Huge Storage Unit Processor Armor Integrity Analyzer Hackware Hacking Suite Protection Hardened Heavy Armor Plating Weapon Autogun Energy Gun Heavy EM Shotgun Energy Cannon Phase Cannon Ballistic Gun Autogun Ballistic Cannon Bore Cannon Launcher Grenade Launcher Special Weapon Advanced Remote Datajack Impact Weapon Powered Hammer Slashing Weapon Blade Saw Piercing Weapon Lance Special Melee Weapon Advanced Datajack Build | -11 -10 -10 -10 -9 -8 -7 -7 -7 -7 -6 -6 -6 -6 -6 -5 -4 -3 -2 ------- Run | Scr Mat Min Exi Min Mat Fac Low Low Dat Pro Fac Ext Cet Arc Fac Fac Res Res Slots Evolved 16 | . . . . . 4 2 . . . . 2 . . . 2 2 2 2 Power 2 | . . . . . . . . . . . 1 . . . . . . 1 Propulsion 3 | . . . . . 1 . . . . . . . . . 1 . 1 . Utility 10 | . . . . . 3 2 . . . . 1 . . . 1 2 . 1 Weapon 1 | . . . . . . . . . . . . . . . . . 1 . Parts Attached 322 | 8 5 12 1 1 56 33 16 11 . 5 4 41 22 3 60 14 8 22 Power 22 | 1 . 1 . . 3 1 . . . . . 3 2 . 7 1 . 3 Engine 10 | 1 . 1 . . 3 1 . . . . . 1 1 . 2 . . . Core 8 | . . . . . . . . . . . . 2 1 . 4 1 . . Reactor 4 | . . . . . . . . . . . . . . . 1 . . 3 Propulsion 54 | 2 . 2 . . 11 3 . . . . . 6 5 3 15 4 1 2 Treads 34 | 2 . 2 . . 11 3 . . . . . 6 4 . 6 . . . Leg 13 | . . . . . . . . . . . . . 1 3 9 . . . Wheel . | . . . . . . . . . . . . . . . . . . . Hover 7 | . . . . . . . . . . . . . . . . 4 1 2 Flight . | . . . . . . . . . . . . . . . . . . . Utility 110 | 2 1 2 1 . 13 20 9 8 . . 4 10 7 . 15 6 5 7 Device 53 | 1 . 1 . . 5 12 7 6 . . 2 3 2 . 6 3 2 3 Storage 11 | 1 1 1 . . . 1 . . . . . . . . 2 1 3 1 Processor 9 | . . . . . 1 2 1 . . . 1 1 1 . . 1 . 1 Hackware 2 | . . . . . . 1 . . . . . . . . . 1 . . Protection 35 | . . . 1 . 7 4 1 2 . . 1 6 4 . 7 . . 2 Artifact . | . . . . . . . . . . . . . . . . . . . Weapon 136 | 3 4 7 . 1 29 9 7 3 . 5 . 22 8 . 23 3 2 10 Energy Gun 12 | 1 . . . . 7 . . . . . . . . . . 2 1 1 Energy Cannon 11 | . . . . . 1 . . . . . . 1 1 . 6 . . 2 Ballistic Gun 59 | 2 4 3 . 1 14 6 3 2 . 4 . 13 1 . 5 . 1 . Ballistic Cannon 8 | . . . . . . 1 . . . . . . 4 . 3 . . . Launcher 27 | . . 1 . . 6 . 3 1 . 1 . 5 2 . 6 . . 2 Special Weapon 2 | . . 1 . . . . . . . . . . . . . . . 1 Impact Weapon 5 | . . . . . . . 1 . . . . . . . 3 1 . . Slashing Weapon 1 | . . . . . . 1 . . . . . . . . . . . . Piercing Weapon 2 | . . . . . . . . . . . . . . . . . . 2 Special Melee Weapon 9 | . . 2 . . 1 1 . . . . . 3 . . . . . 2 Unidentified Prototypes 13 | . . . . . 5 1 . . . . . . 2 . 3 . 2 . Corrupted Parts 2 | . . . . . . . . . . . . . 1 . 1 . . . System Corruption 11 | . . . . . . . . . . . . . 10 . 1 . . . Parts Lost 87 | . . 3 . . 2 6 1 3 . . . 9 15 6 24 1 1 16 Power 13 | . . . . . . . . . . . . 1 2 1 5 . . 4 Propulsion 25 | . . 2 . . 1 2 . . . . . 4 5 2 7 . . 2 Utility 31 | . . 1 . . 1 2 . 2 . . . 2 4 3 8 . 1 7 Weapon 18 | . . . . . . 2 1 1 . . . 2 4 . 4 1 . 3 Highest Loss Streak 15 | . . 2 . . 1 6 1 3 . . . 2 15 6 11 1 1 9 To Critical Strikes 1 | . . . . . . . . . . . . . 1 . . . . . Average Slot Usage (%) 93 | . 99 99 100 100 96 96 92 91 76 91 86 93 84 63 87 91 90 82 Engine 8 | . 14 14 14 14 9 7 7 7 7 7 6 5 2 6 1 . . . Core 1 | . . . . . . . . . . . . 5 6 . 5 9 9 5 Treads 22 | . 28 27 28 28 26 23 23 23 23 23 20 19 10 1 8 . . . Leg 1 | . . . . . . . . . . . . . . 16 11 4 . . Device 8 | . 14 8 8 . 8 15 6 6 7 7 5 3 5 . 5 11 12 11 Storage 9 | . 14 19 14 14 9 7 7 7 7 7 6 6 6 6 7 10 9 9 Processor 12 | . . . . . 1 11 22 23 23 23 26 26 28 26 23 25 23 18 Protection 9 | . . . 5 14 23 10 7 7 7 7 6 11 10 1 8 . . . Energy Gun 1 | . . . . . 7 . . . . . . . . . . 4 3 3 Ballistic Gun 14 | . 27 20 14 27 9 14 14 14 . 14 13 11 2 . 4 . . . Launcher 1 | . . 5 14 . . . . . . . . 1 . . . . . . Naked Turns 78 | . . . . . . . . . . . . . . . . . . 78 Heaviest Build 146 | 14 92 95 94 94 117 125 125 125 113 116 125 146 132 132 137 94 46 67 Greatest Support 113 | 40 40 43 43 43 84 84 70 70 70 70 70 75 100 100 113 66 62 67 Greatest Overweight (x) 35 | . 2 2 2 2 2 1 1 1 1 1 1 2 35 1 2 1 . 1 Average Overweight (x) 1 | . . 2 2 2 1 1 1 1 1 1 1 1 1 1 1 . . . Largest Inventory Capacity 25 | 8 25 25 25 25 25 25 25 25 25 25 25 25 25 25 25 25 15 15 Average Capacity 24 | 6 18 25 25 25 25 25 25 25 25 25 25 25 25 25 25 17 15 13 Most Carried 25 | 8 25 25 25 25 25 25 25 24 24 23 25 25 25 25 25 25 15 15 Average Carried 22 | 5 11 24 24 25 24 24 24 21 23 22 24 24 21 23 24 16 14 13 Final Capacity 25 | 8 25 25 25 25 25 25 25 25 25 25 25 25 25 25 25 15 15 5 Final Carried 25 | 8 25 25 25 25 25 25 24 22 24 23 25 25 24 23 22 15 15 5 Class Distribution -------------------- 75% | Mutant 20% | Scavenger-Mutant Dominant Class ---------------- Mutant | -10/Materials Mutant | -10/Mines Mutant | -10/Exiles Mutant | -9/Mines Scavenger-Mutant | -8/Materials Mutant | -7/Factory Mutant | -7/Lower Caves Mutant | -7/Lower Caves Mutant | -7/Data Miner Mutant | -6/Proximity Caves Mutant | -6/Factory Mutant | -6/Extension Scavenger-Mutant | -6/Cetus Scavenger-Mutant | -6/Archives Scavenger-Mutant | -5/Factory Scout | -4/Factory Scout | -3/Research Generator-Mutant | -2/Research Resources | -11 -10 -10 -10 -9 -8 -7 -7 -7 -7 -6 -6 -6 -6 -6 -5 -4 -3 -2 ----------- Run | Scr Mat Min Exi Min Mat Fac Low Low Dat Pro Fac Ext Cet Arc Fac Fac Res Res Matter Collected 7718 | 298 328 391 20 34 1336 636 775 381 . 40 . 1014 777 . 1294 104 94 196 Remotely . | . . . . . . . . . . . . . . . . . . . Salvage Created 11206 | 115 327 513 . 65 3019 1070 327 349 . 151 43 1162 473 . 2902 . . 690 Parts 621 | 4 34 20 . 8 170 69 12 15 . 10 4 60 24 . 139 . . 52 Haulers Intercepted 14 | . . . . . 6 3 . . . . . . . . 5 . . . Recyclers Shooed 16 | . . . . . 6 1 . . . . . 5 . . 4 . . . Parts Field Recycled . | . . . . . . . . . . . . . . . . . . . Retrieved Matter . | . . . . . . . . . . . . . . . . . . . Parts Self-Destructed 41 | . . . . . . . 12 18 . 11 . . . . . . . . Prevented 1 | . . . . . . . . 1 . . . . . . . . . . Kills | -11 -10 -10 -10 -9 -8 -7 -7 -7 -7 -6 -6 -6 -6 -6 -5 -4 -3 -2 ------- Run | Scr Mat Min Exi Min Mat Fac Low Low Dat Pro Fac Ext Cet Arc Fac Fac Res Res Combat Hostiles Destroyed 191 | . 13 14 . 4 51 16 8 7 . 5 2 19 8 . 37 . . 7 Guns 113 | . 13 14 . 4 33 16 4 5 . . 2 8 2 . 9 . . 3 Cannons 11 | . . . . . . . . . . . . . 1 . 10 . . . AOE 55 | . . . . . 15 . 4 2 . 5 . 9 4 . 13 . . 3 Classes Destroyed 19 | 2 2 1 . . 10 2 1 . . . . . . . 1 . . . Worker 16 | . . . . . 6 1 . . . . . . . . 9 . . . Builder 10 | . . . . . 3 . . . . . . . . . 5 . . 2 Tunneler 3 | 1 . . . . 1 1 . . . . . . . . . . . . Hauler 14 | . . . . . 6 3 . . . . . . . . 5 . . . Recycler 10 | 1 . . . . 3 2 . . . . . . . . 3 . . 1 Mechanic 1 | . . . . . . . . . . . . . . . 1 . . . Operator 3 | . . . . . 1 1 . . . . . . . . 1 . . . Watcher 7 | . . . . . 4 . . . . . . . 1 . 1 . . 1 Swarmer 31 | . 5 . . 4 3 3 2 . . 2 2 1 . . 9 . . . Grunt 88 | . 8 12 . . 33 4 3 5 . 3 . 6 2 . 12 . . . Brawler 2 | . . . . . 2 . . . . . . . . . . . . . Duelist 4 | . . . . . 2 . . 1 . . . . . . 1 . . . Protector 2 | . . . . . 2 . . . . . . . . . . . . . Sentry 21 | . . . . . 7 2 1 . . . . 8 . . 3 . . . Specialist 2 | . . . . . 2 . . . . . . . . . . . . . Hunter 16 | . . . . . . 2 . 1 . . . 3 5 . 2 . . 3 Programmer 20 | . . . . . . 5 1 . . . . . . . 10 . . 4 Behemoth 2 | . . . . . . . 1 . . . . 1 . . . . . . Cetus Guard 1 | . . . . . . . . . . . . . 1 . . . . . Decomposer 1 | . . . . . . . 1 . . . . . . . . . . . Assembled 2 | . . 2 . . . . . . . . . . . . . . . . Best Kill Streak 11 | 1 3 5 . 4 9 4 3 3 . 5 2 7 3 . 11 . . 8 Combat Bots Only 7 | . 3 5 . 4 5 3 3 3 . 5 2 7 3 . 6 . . 4 Max Kills in Single Turn 9 | 1 1 1 . 2 4 1 2 2 . 2 1 1 2 . 9 . . 3 Gunslinging 1 | . . . . 1 . . . . . . . . . . . . . . Exploded 3 | . . . . . 3 . 2 2 . 2 . 1 2 . 3 . . 2 Melee . | . . . . . . . . . . . . . . . . . . . Uniques/NPCs Destroyed . | . . . . . . . . . . . . . . . . . . . Combat | -11 -10 -10 -10 -9 -8 -7 -7 -7 -7 -6 -6 -6 -6 -6 -5 -4 -3 -2 -------- Run | Scr Mat Min Exi Min Mat Fac Low Low Dat Pro Fac Ext Cet Arc Fac Fac Res Res Damage Taken 21355 | . 306 472 . 26 2213 1673 1081 649 . 90 54 2328 2827 1693 4762 82 105 2994 Core 3640 | . 69 34 . 17 148 284 159 65 . . . 169 294 298 553 36 43 1471 Absorbed by Shields 379 | . . . . . . 36 . . . . . 118 . . . . . 225 Regen/Repaired (Parts) 140 | . . . . . . 140 . . . . . . . . . . . . Core Remaining (%) 62 | 100 . . . 52 73 . . . . 27 . . . 10 44 96 96 . Volleys Fired 617 | 7 36 51 . 3 153 82 29 20 . 4 2 64 42 . 102 3 . 19 Largest 2 | 2 2 2 . 2 2 2 2 2 . 1 2 2 2 . 2 1 . 2 Hottest 450 | 40 46 100 . 46 100 48 48 58 . 36 58 61 110 . 175 225 . 450 Shots Fired 1122 | 14 72 85 . 6 293 166 54 39 . 6 4 109 67 . 182 3 . 22 Gun 922 | 14 72 68 . 6 276 166 47 37 . 2 4 89 38 . 93 3 . 7 Cannon 86 | . . . . . . . . . . . . . 16 . 68 . . 2 Launcher 97 | . . . . . 17 . 7 2 . 4 . 20 13 . 21 . . 13 Special 17 | . . 17 . . . . . . . . . . . . . . . . Kinetic 841 | 14 72 68 . 6 166 166 47 37 . 2 4 89 52 . 118 . . . Thermal 74 | . . 17 . . . . . . . . . . 2 . 43 3 . 9 Explosive 40 | . . . . . 17 . 7 2 . 4 . . . . 5 . . 5 Electromagnetic 167 | . . . . . 110 . . . . . . 20 13 . 16 . . 8 Robot Hit Streak 21 | 4 9 14 . 3 16 15 10 7 . 7 2 13 21 . 12 . . 5 Robot Miss Streak 9 | 1 9 3 . 2 6 4 3 3 . . 1 2 4 . 5 . . 1 Penetration Max 1 | . . . . . . . . . . . . . . . 1 . . . Secondary Targets 19 | . 1 1 . 2 7 4 . 1 . . . 1 1 . 1 . . . Max Gunslinging Chain 1 | . 1 1 . 1 1 1 . 1 . . . 1 1 . 1 . . . Shots Hit Robots 802 | 9 56 47 . 4 220 122 36 27 . 4 2 100 47 . 119 . . 9 Core Hits 552 | 3 26 21 . 4 151 48 28 12 . 13 2 66 57 . 96 . . 25 Critical Kills 12 | . 1 . . . . . . 1 . . . . . . 10 . . . Critical Parts Destroyed 13 | . 2 . . . 3 2 2 . . . . . . . 4 . . . Critical Strikes 25 | . 3 . . . 3 2 2 1 . . . . . . 14 . . . Meltdown 1 | . . . . . . . . . . . . . . . 1 . . . Destroy 23 | . 3 . . . 3 2 1 1 . . . . . . 13 . . . Smash 1 | . . . . . . . 1 . . . . . . . . . . . Melee Attacks 55 | . . . . . . 1 2 . . . . 25 . . 13 . 4 10 Impact 25 | . . . . . . . 2 . . . . . . . 13 . 4 6 Slashing . | . . . . . . . . . . . . . . . . . . . Piercing 4 | . . . . . . . . . . . . . . . . . . 4 Sneak Attacks 26 | . . . . . . 1 . . . . . 25 . . . . . . Combat Hostiles . | . . . . . . . . . . . . . . . . . . . Follow-up Attacks . | . . . . . . . . . . . . . . . . . . . Damage Inflicted 24866 | 95 779 806 . 70 6117 2107 1393 647 . 555 41 2547 1503 . 6373 . . 1833 Guns 12737 | 95 776 792 . 58 3618 1989 647 451 . 39 41 1383 842 . 1759 . . 247 Cannons 1726 | . . . . . . . . . . . . . 205 . 1521 . . . Explosions 9473 | . . . . . 2415 . 541 196 . 516 . 1157 456 . 2637 . . 1555 Melee 526 | . . . . . . . 164 . . . . . . . 331 . . 31 Ramming 404 | . 3 14 . 12 84 118 41 . . . . 7 . . 125 . . . Kinetic 11418 | 95 776 792 . 58 1825 1989 647 451 . 39 41 1383 1047 . 2275 . . . Thermal 3523 | . . . . . 544 . . . . . . 101 . . 2312 . . 566 Explosive 4220 | . . . . . 1871 . 541 196 . 516 . . . . 468 . . 628 Electromagnetic 4775 | . . . . . 1793 . . . . . . 1056 456 . 862 . . 608 Impact 495 | . . . . . . . 164 . . . . . . . 331 . . . Slashing . | . . . . . . . . . . . . . . . . . . . Piercing 31 | . . . . . . . . . . . . . . . . . . 31 Highest Corruption 17 | . . . . . . 7 7 7 7 7 . 5 15 15 11 . 1 17 Average Corruption 6 | . . . . . . 5 7 7 7 7 . 5 12 15 6 . 1 10 Corruption Purged . | . . . . . . . . . . . . . . . . . . . Corruption Blocked . | . . . . . . . . . . . . . . . . . . . Effects 341 | . . . . . . 54 77 55 7 34 . 27 23 22 33 . 2 7 Message Errors 90 | . . . . . . 18 17 16 1 11 . 8 5 3 8 . 1 2 Matter Fused 90 | . . . . . . 9 24 13 . 10 . 7 4 7 14 . 1 1 Heat Flow Errors 37 | . . . . . . 4 10 5 1 4 . 4 3 2 3 . . 1 Energy Discharges 49 | . . . . . . 10 11 8 2 4 . 4 1 6 2 . . 1 Parts Rejected 4 | . . . . . . . . . . . . 1 1 . 2 . . . Data Loss (minor) 29 | . . . . . . 1 7 7 3 2 . 1 1 3 4 . . . Data Loss (major) 14 | . . . . . . 5 2 4 . 1 . . 2 . . . . . Misfires 14 | . . . . . . 4 4 1 . 2 . 1 2 . . . . . Alerts 6 | . . . . . . 1 1 1 . . . 1 1 1 . . . . Misdirections 2 | . . . . . . . . . . . . . . . . . . 2 Weapon Failures 6 | . . . . . . 2 1 . . . . . 3 . . . . . Overload Shots 10 | . . . . . . . . . . . . . . . . 3 . 7 Effects 1 | . . . . . . . . . . . . . . . . 1 . . Energy Bleed 1 | . . . . . . . . . . . . . . . . 1 . . Overflow Damage 632 | . . . . . 23 . 157 . . . . 17 . . 404 . . 31 Projectiles 12 | . . . . . . . . . . . . . . . 12 . . . Explosions 458 | . . . . . 2 . 43 . . . . 17 . . 365 . . 31 Melee 162 | . . . . . 21 . 114 . . . . . . . 27 . . . Knockbacks 9 | . . . . . . 2 1 . . . . . . . 6 . . . Impact 5 | . . . . . . 2 1 . . . . . . . 2 . . . Kinetic 3 | . . . . . . . . . . . . . . . 3 . . . Secondary 1 | . . . . . . . . . . . . . . . 1 . . . Self-Inflicted Damage 501 | . . . . . 31 . 44 . . . . 56 . . 311 . . 59 Shots 21 | . . . . . 3 . 2 . . . . 4 . . 7 . . 5 Rammed 30 | . 1 4 . 3 7 7 5 . . . . 3 . . . . . . Targets Rammed 43 | . 1 4 . 3 9 9 5 . . . . 3 . . 9 . . . Kicked 9 | . . . . . . . . . . . . . . . 9 . . . Crushed 4 | . . . . . 2 2 . . . . . . . . . . . . Highest Temperature 1029 | . 4 60 . 40 403 259 278 285 260 273 36 293 254 174 405 166 178 1029 Average Temperature 86 | . 2 17 . 25 89 74 86 123 244 109 19 79 94 72 70 83 73 355 Received Heat Transfer 4222 | . 132 180 . . 1071 216 165 270 . 18 . 540 501 216 711 . 9 193 Effects 34 | . . . . . 10 . 1 . . . . . . . 3 . . 20 Shutdowns 8 | . . . . . 1 . . . . . . . . . 1 . . 6 Interference 11 | . . . . . 8 . 1 . . . . . . . 1 . . 1 Matter Decay 4 | . . . . . 1 . . . . . . . . . . . . 3 Short Circuit 2 | . . . . . . . . . . . . . . . . . . 2 Damage (minor) 3 | . . . . . . . . . . . . . . . 1 . . 2 Damage (major) 4 | . . . . . . . . . . . . . . . . . . 4 Damage (core) 2 | . . . . . . . . . . . . . . . . . . 2 Siege Activations . | . . . . . . . . . . . . . . . . . . . Robots Corrupted 11 | . . . . . 3 . . . . . . 2 1 . 4 . . 1 Combat Hostiles 11 | . . . . . 3 . . . . . . 2 1 . 4 . . 1 Parts Fried 35 | . . . . . 15 . 1 . . . . 2 10 . 6 . . 1 Impact Corruptions 9 | . . . . . 2 . 6 . . . . . . . 1 . . . Robots Melted 1 | . . . . . . . . . . . . . . . 1 . . . Combat Hostiles 1 | . . . . . . . . . . . . . . . 1 . . . Parts Melted 7 | . . . . . . . . . . . . 1 . . 4 . . 2 Heat Transferred 3290 | . . . . . 650 . . . . . . 150 . . 2040 . . 450 Parts Sabotaged . | . . . . . . . . . . . . . . . . . . . Parts Stolen . | . . . . . . . . . . . . . . . . . . . Parts Stripped . | . . . . . . . . . . . . . . . . . . . Power Chain Reactions 14 | . . . . . 7 . . . . . . 4 . . 1 . . 2 Missiles Intercepted . | . . . . . . . . . . . . . . . . . . . Alert | -11 -10 -10 -10 -9 -8 -7 -7 -7 -7 -6 -6 -6 -6 -6 -5 -4 -3 -2 ------- Run | Scr Mat Min Exi Min Mat Fac Low Low Dat Pro Fac Ext Cet Arc Fac Fac Res Res Peak Influence 944 | 10 237 160 . 164 944 377 . . . . 81 384 214 . 837 415 235 222 Initial 409 | . 6 . . . . 377 . . . . . . 214 . . 409 212 126 Average 217 | 2 86 23 . 27 535 199 . . . . 46 132 78 . 347 411 217 134 Maximum Alert Level 3 | . 1 . . . 3 1 . . . . . 1 1 . 3 2 1 1 Low Security (%) 61 | 100 95 100 . 100 6 69 . . . . 100 68 89 100 15 . . 88 Level 1 24 | . 4 . . . 38 30 . . . . . 31 10 . 65 . 100 11 Level 2 6 | . . . . . 20 . . . . . . . . . 6 100 . . Level 3 8 | . . . . . 35 . . . . . . . . . 12 . . . Level 4 . | . . . . . . . . . . . . . . . . . . . Level 5 . | . . . . . . . . . . . . . . . . . . . High Security . | . . . . . . . . . . . . . . . . . . . Max Security . | . . . . . . . . . . . . . . . . . . . Sterilizations 1 | . . . . . 1 . . . . . . . . . . . . . Squads Dispatched 40 | . 4 . . . 11 8 . . . . . 5 . . 8 2 . 2 Investigation 10 | . 3 . . . 4 . . . . . . 2 . . . 1 . . Extermination 10 | . . . . . . 5 . . . . . . . . 4 . . 1 Reinforcement 12 | . 1 . . . 2 3 . . . . . 3 . . 2 . . 1 Assault 5 | . . . . . 2 . . . . . . . . . 2 1 . . Garrison 3 | . . . . . 3 . . . . . . . . . . . . . Intercept . | . . . . . . . . . . . . . . . . . . . Searches Triggered . | . . . . . . . . . . . . . . . . . . . Data Miner Redirects 4 | . . . . . . . . . . . . 2 . . 1 1 . . Construction Impeded 3 | . . . . . . . . . . . . 2 . . . . . 1 Haulers Reinforced 3 | . . . . . . 2 . . . . . . . . 1 . . . Active Scanning Responses . | . . . . . . . . . . . . . . . . . . . Cargo Convoy Interrupts . | . . . . . . . . . . . . . . . . . . . Stealth | -11 -10 -10 -10 -9 -8 -7 -7 -7 -7 -6 -6 -6 -6 -6 -5 -4 -3 -2 --------- Run | Scr Mat Min Exi Min Mat Fac Low Low Dat Pro Fac Ext Cet Arc Fac Fac Res Res Distress Signals 13 | . 1 1 . . 4 . . . . . . 3 2 . 1 . . 1 Communications Jammed 4 | . . . . . . . . . . . . . . . 4 . . . Distress Signals 4 | . . . . . . . . . . . . . . . 4 . . . Times Spotted 318 | . 25 14 . 4 73 23 9 8 . 10 4 37 14 10 54 9 9 15 Peak Tracking Total 9 | . 4 2 . 4 6 4 4 4 . 6 4 7 6 7 5 8 9 6 Tactical Retreats 12 | . 1 . . . 4 . . 1 . 1 . 2 . . 2 . . 1 Traps | -11 -10 -10 -10 -9 -8 -7 -7 -7 -7 -6 -6 -6 -6 -6 -5 -4 -3 -2 ------- Run | Scr Mat Min Exi Min Mat Fac Low Low Dat Pro Fac Ext Cet Arc Fac Fac Res Res Traps Triggered 14 | . 1 . . . 2 2 . . . . . 3 . . 1 . 1 4 Indirectly 3 | . . . . . . . . . . . . . . . . . . 3 Trap Hack Attempts 43 | . . 36 . . 7 . . . . . . . . . . . . . Triggered . | . . . . . . . . . . . . . . . . . . . Disarmed . | . . . . . . . . . . . . . . . . . . . Reprogrammed 3 | . . 2 . . 1 . . . . . . . . . . . . . Reused . | . . . . . . . . . . . . . . . . . . . Traps Extracted 2 | . . 2 . . . . . . . . . . . . . . . . Installed . | . . . . . . . . . . . . . . . . . . . Triggered 3 | . . . . . . . . 3 . . . . . . . . . . Most Traps Carried 5 | . . 5 5 5 5 . . . . . . . . . . . . . Machines | -11 -10 -10 -10 -9 -8 -7 -7 -7 -7 -6 -6 -6 -6 -6 -5 -4 -3 -2 ---------- Run | Scr Mat Min Exi Min Mat Fac Low Low Dat Pro Fac Ext Cet Arc Fac Fac Res Res Machines Disabled 22 | . . . . 1 1 . . . . . . 2 2 . 16 . . . Max in Single Turn 5 | . . . . 1 1 . . . . . . 1 2 . 5 . . . Garrison Access 2 | . . . . . 1 1 . . . . . . . . . . . . Energy Cycler 1 | . . . . . . . . . . . . 1 . . . . . . Machines Sabotaged . | . . . . . . . . . . . . . . . . . . . Garrisons Compromised . | . . . . . . . . . . . . . . . . . . . Overloaded Fab Kills . | . . . . . . . . . . . . . . . . . . . Hacking | -11 -10 -10 -10 -9 -8 -7 -7 -7 -7 -6 -6 -6 -6 -6 -5 -4 -3 -2 --------- Run | Scr Mat Min Exi Min Mat Fac Low Low Dat Pro Fac Ext Cet Arc Fac Fac Res Res Machines Accessed 44 | . 8 1 1 . 9 9 1 . 4 . 1 7 . . 2 1 . . Terminals 28 | . 6 . . . 6 5 1 . . . 1 7 . . 2 . . . Fabricators 1 | . . . . . . 1 . . . . . . . . . . . . Repair Stations 3 | . . . . . 1 2 . . . . . . . . . . . . Recycling Units 2 | . 2 . . . . . . . . . . . . . . . . . Scanalyzers 2 | . . . . . 2 . . . . . . . . . . . . . Garrison Access 2 | . . . . . . 1 . . . . . . . . . 1 . . Total Hacks 162 | . 19 1 23 . 33 27 1 . 27 . 1 22 . . 3 5 . . Successful 101 | . 9 1 23 . 13 15 1 . 27 . 1 10 . . 1 . . . Failed 61 | . 10 . . . 20 12 . . . . . 12 . . 2 5 . . Catastrophic 11 | . 2 . . . 3 2 . . . . . 2 . . 2 . . . Database Lockouts . | . . . . . . . . . . . . . . . . . . . Manual 29 | . 13 . . . 9 4 . . . . . 2 . . 1 . . . Terminals 84 | . 17 . . . 23 17 1 . . . 1 22 . . 3 . . . Fabricators 2 | . . . . . . 2 . . . . . . . . . . . . Repair Stations 9 | . . . . . 2 7 . . . . . . . . . . . . Recycling Units 2 | . 2 . . . . . . . . . . . . . . . . . Scanalyzers 8 | . . . . . 8 . . . . . . . . . . . . . Garrison Access 6 | . . . . . . 1 . . . . . . . . . 5 . . Terminal Hacks 85 | . 7 1 23 . 7 7 1 . 27 . 1 10 . . 1 . . . Record 36 | . . . 23 . 1 . 1 . 11 . . . . . . . . . Part Schematic 17 | . 3 . . . . 1 . . 10 . . 3 . . . . . . Robot Schematic 3 | . . . . . . . . . 3 . . . . . . . . . Robot Analysis 1 | . 1 . . . . . . . . . . . . . . . . . Prototype ID Bank 14 | . 2 . . . 2 4 . . 3 . . 2 . . 1 . . . Open Door 2 | . . 1 . . . . . . . . 1 . . . . . . . Branch Access Points 3 | . . . . . 1 1 . . . . . 1 . . . . . . Unreport Threat 1 | . . . . . 1 . . . . . . . . . . . . . Locate Traps 3 | . . . . . 1 1 . . . . . 1 . . . . . . Hauler Manifests 4 | . 1 . . . 1 . . . . . . 2 . . . . . . Zone Layout 1 | . . . . . . . . . . . . 1 . . . . . . Fabricator Hacks . | . . . . . . . . . . . . . . . . . . . Repair Station Hacks 7 | . . . . . 1 6 . . . . . . . . . . . . Scan Component 4 | . . . . . 1 3 . . . . . . . . . . . . Repair 3 | . . . . . . 3 . . . . . . . . . . . . Recycling Unit Hacks . | . . . . . . . . . . . . . . . . . . . Scanalyzer 3 | . . . . . 3 . . . . . . . . . . . . . Insert Component 3 | . . . . . 3 . . . . . . . . . . . . . Garrison Access Hacks 1 | . . . . . . 1 . . . . . . . . . . . . Seal Access 1 | . . . . . . 1 . . . . . . . . . . . . Unauthorized Hacks 5 | . 2 . . . 2 1 . . . . . . . . . . . . Terminals 3 | . . . . . 2 1 . . . . . . . . . . . . Track 3 | . . . . . 2 1 . . . . . . . . . . . . Fabricators . | . . . . . . . . . . . . . . . . . . . Repair Stations . | . . . . . . . . . . . . . . . . . . . Recycling Units 2 | . 2 . . . . . . . . . . . . . . . . . Tunnel 2 | . 2 . . . . . . . . . . . . . . . . . Scanalyzers . | . . . . . . . . . . . . . . . . . . . Garrison Access . | . . . . . . . . . . . . . . . . . . . Data Cores Recovered 1 | . . . . . . 1 . . . . . . . . . . . . Used 1 | . . . . . . 1 . . . . . . . . . . . . Hacking Detections 34 | . 6 . . . 9 8 1 . . . . 7 . . 2 1 . . Full Trace Events 4 | . . . . . 2 . . . . . . 1 . . . 1 . . Feedback Events . | . . . . . . . . . . . . . . . . . . . Feedback Blocked . | . . . . . . . . . . . . . . . . . . . Robot Schematics Acquired 3 | . . . . . . . . . 3 . . . . . . . . . Robots Built . | . . . . . . . . . . . . . . . . . . . Authchips . | . . . . . . . . . . . . . . . . . . . Time . | . . . . . . . . . . . . . . . . . . . Total Robot Build Rating . | . . . . . . . . . . . . . . . . . . . Part Schematics Acquired 17 | . 3 . . . . 1 . . 10 . . 3 . . . . . . Parts Built . | . . . . . . . . . . . . . . . . . . . Authchips . | . . . . . . . . . . . . . . . . . . . Time . | . . . . . . . . . . . . . . . . . . . Total Part Build Rating . | . . . . . . . . . . . . . . . . . . . Parts Repaired 3 | . . . . . . 3 . . . . . . . . . . . . Time 212 | . . . . . . 212 . . . . . . . . . . . . Parts Recycled . | . . . . . . . . . . . . . . . . . . . Recycled Matter . | . . . . . . . . . . . . . . . . . . . Retrieved Matter . | . . . . . . . . . . . . . . . . . . . Retrieved Components . | . . . . . . . . . . . . . . . . . . . Parts Scanalyzed 1 | . . . . . 1 . . . . . . . . . . . . . Part Schematics Acquired . | . . . . . . . . . . . . . . . . . . . Parts Damaged . | . . . . . . . . . . . . . . . . . . . Bothacking | -11 -10 -10 -10 -9 -8 -7 -7 -7 -7 -6 -6 -6 -6 -6 -5 -4 -3 -2 ------------ Run | Scr Mat Min Exi Min Mat Fac Low Low Dat Pro Fac Ext Cet Arc Fac Fac Res Res Used RIF Installer . | . . . . . . . . . . . . . . . . . . . Robots Hacked 1 | . . . . . . 1 . . . . . . . . . . . . Non-combat 1 | . . . . . . 1 . . . . . . . . . . . . Combat . | . . . . . . . . . . . . . . . . . . . Robot Hacks Applied 1 | . . . . . . 1 . . . . . . . . . . . . find_chute 1 | . . . . . . 1 . . . . . . . . . . . . Relay Couplers Released 3 | . . . . . 3 . . . . . . . . . . . . . Machine Destruction 3 | . . . . . 3 . . . . . . . . . . . . . Fabnet Peak Effective % . | . . . . . . . . . . . . . . . . . . . Robots Rewired 18 | . . . . . . . . . . . . 18 . . . . . . Allies Hacked . | . . . . . . . . . . . . . . . . . . . Hacks Repelled . | . . . . . . . . . . . . . . . . . . . Allies | -11 -10 -10 -10 -9 -8 -7 -7 -7 -7 -6 -6 -6 -6 -6 -5 -4 -3 -2 -------- Run | Scr Mat Min Exi Min Mat Fac Low Low Dat Pro Fac Ext Cet Arc Fac Fac Res Res Total Allies 25 | . . 3 . . . . . . . 1 . 21 . . . . . . Largest Group 8 | . . 3 3 3 . . . . . 1 1 8 8 . . . . . Highest-Rated Group 349 | . . 40 40 40 . . . . . 96 96 349 198 . . . . . Highest-Rated Ally 159 | . . 16 16 16 . . . . . 96 96 159 31 . . . . . Total Orders . | . . . . . . . . . . . . . . . . . . . Ally Attacks 128 | . . 3 . 17 . . . . . 11 6 74 17 . . . . . Total Damage 3410 | . . 34 . 200 . . . . . 184 237 2322 433 . . . . . Kills 26 | . . 1 . 4 . . . . . 3 2 15 1 . . . . . Allies Corrupted 2 | . . . . . . . . . . . . 2 . . . . . . Allies Melted 1 | . . . . . . . . . . . . . . 1 . . . . Intel | -11 -10 -10 -10 -9 -8 -7 -7 -7 -7 -6 -6 -6 -6 -6 -5 -4 -3 -2 ------- Run | Scr Mat Min Exi Min Mat Fac Low Low Dat Pro Fac Ext Cet Arc Fac Fac Res Res Robot Analysis Total 1 | . 1 . . . . . . . . . . . . . . . . . Derelict Logs Recovered 7 | . . 1 . 1 . . 3 1 . 1 . . . . . . . . Drone Launches . | . . . . . . . . . . . . . . . . . . . Drone Recoveries . | . . . . . . . . . . . . . . . . . . . Exploration | -11 -10 -10 -10 -9 -8 -7 -7 -7 -7 -6 -6 -6 -6 -6 -5 -4 -3 -2 ------------- Run | Scr Mat Min Exi Min Mat Fac Low Low Dat Pro Fac Ext Cet Arc Fac Fac Res Res Turns Passed 26991 | 122 2022 2626 1452 1594 4081 3118 2476 1842 215 1022 585 1554 450 555 2156 268 166 687 Spaces Moved 10359 | 58 772 718 452 493 1347 1074 982 739 90 423 240 477 106 201 800 239 251 897 Core 165 | 8 . . . . . . . . . . . . 1 . . . . 156 Treads 8312 | 50 772 718 452 493 1347 1074 982 739 90 423 240 477 103 37 315 . . . Legs 673 | . . . . . . . . . . . . . 2 164 485 22 . . Wheels . | . . . . . . . . . . . . . . . . . . . Hover 1209 | . . . . . . . . . . . . . . . . 217 251 741 Flight . | . . . . . . . . . . . . . . . . . . . Fastest Speed 48 | 50 160 320 320 320 240 238 238 238 238 238 238 230 235 190 165 50 50 48 Average Speed 224 | 144 239 320 320 320 240 238 238 238 238 238 238 249 270 199 207 68 50 50 Slowest Speed 1800 | 160 320 320 320 320 320 240 238 238 238 238 238 310 1800 240 260 190 50 120 Overloaded Moves . | . . . . . . . . . . . . . . . . . . . Propulsion Burnouts . | . . . . . . . . . . . . . . . . . . . Robots Hopped . | . . . . . . . . . . . . . . . . . . . Cave-ins Triggered . | . . . . . . . . . . . . . . . . . . . Exploration Rate (%) 58 | 6 97 98 81 99 87 35 93 89 70 67 5 72 54 99 25 6 5 19 Regions Visited 18 Branch Regions 10 Pre-discovered Areas 5 | . 2 . 1 . . . 1 . 1 . . . . . . . . . Known Exits Taken 5 | . . . . . 1 1 1 . . . 1 1 . . . . . . Unknown Exits Taken 13 | 1 1 1 1 1 . . . 1 1 1 . . 1 1 1 1 1 . Scrap Searched 8 | . . 1 . 2 . . 2 3 . . . . . . . . . . Spaces Dug 41 | . . . . . 8 . . . . 20 . . . . 1 3 4 5 Terrain Destroyed 410 | . . 1 . . 139 . 43 5 . 40 . 18 3 . 111 3 4 43 Melee 7 | . . . . . . . . . . . . . . . 1 . 4 2 Projectile 38 | . . 1 . . . . . . . . . 1 3 . 26 3 . 4 AOE 365 | . . . . . 139 . 43 5 . 40 . 17 . . 84 . . 37 Terrain Rammed . | . . . . . . . . . . . . . . . . . . . Walls Destroyed . | . . . . . . . . . . . . . . . . . . . Machines Disabled . | . . . . . . . . . . . . . . . . . . . Actions | -11 -10 -10 -10 -9 -8 -7 -7 -7 -7 -6 -6 -6 -6 -6 -5 -4 -3 -2 --------- Run | Scr Mat Min Exi Min Mat Fac Low Low Dat Pro Fac Ext Cet Arc Fac Fac Res Res Total 12905 | 80 879 937 459 499 1897 1455 1057 785 93 433 250 727 197 358 1082 341 286 1090 Wait 1009 | . 28 88 5 . 242 214 17 13 . 2 2 12 14 151 28 69 7 117 Move 10341 | 57 771 717 451 492 1346 1073 981 738 89 422 239 476 105 200 799 238 250 897 Hop . | . . . . . . . . . . . . . . . . . . . Pick Up 192 | 8 26 14 1 . 34 17 . 2 2 . 3 19 11 1 36 7 6 5 Fast Attach 105 | 7 2 1 . . 17 15 2 . . . . 12 5 . 23 2 6 13 Attach 86 | . . 3 . . 8 4 1 4 . 2 1 9 12 3 23 8 1 7 Detach 15 | . . . . . . 1 . 1 . . . . 1 2 4 2 1 3 Swap 131 | 1 3 8 1 1 31 14 13 7 . 3 3 20 5 . 14 4 1 2 Drop 188 | . 12 15 1 . 50 24 2 . 2 . . 19 2 1 31 8 10 11 Fire 617 | 7 36 51 . 3 153 82 29 20 . 4 2 64 42 . 102 3 . 19 Melee 55 | . . . . . . 1 2 . . . . 25 . . 13 . 4 10 Ram . | . . . . . . . . . . . . . . . . . . . Kick 9 | . . . . . . . . . . . . . . . 9 . . . Crush 34 | . 1 4 . 3 9 9 5 . . . . 3 . . . . . . Escape Stasis 11 | . . . . . . 1 . . . . . 4 . . . . . 6 Rewire 69 | . . . . . . . 5 . . . . 64 . . . . . . Trap 43 | . . 36 . . 7 . . . . . . . . . . . . . Miscellaneous . | . . . . . . . . . . . . . . . . . . . Route ------- -11/Scrapyard -10/Materials (discovered 4 exits: [*Mat x3] / *Min) -10/Mines (discovered 3 exits: [*Mat x2] / *Exi) -10/Exiles -9/Mines (discovered 2 exits: *Mat x2) -8/Materials (discovered 2 exits: *Fac x2) -7/Factory (discovered 6 exits: *Fac x2 / *Sto x2 / *Low x2) -7/Lower Caves (discovered 2 exits: *Low / [*Zio]) -7/Lower Caves (discovered 2 exits: *Fac / *Dat) -7/Data Miner -6/Proximity Caves -6/Factory -6/Extension (discovered 3 exits: *Fac x2 / *Cet) -6/Cetus -6/Archives (discovered 3 exits: *Fac / [*Hub x2]) -5/Factory (discovered 2 exits: *Fac / Upp) -4/Factory -3/Research -2/Research History --------- Turn | Location | Event 10 | -11/Scrapyard | Discovered new exit (range 15) 123 | -11/Scrapyard | Entered Materials 304 | -10/Materials | Build established: Mutant 421 | -10/Materials | Discovered new exit (range 4) 607 | -10/Materials | Discovered new exit (range 5) 672 | -10/Materials | Discovered new exit (range 9) 990 | -10/Materials | Discovered new exit (range 9) 2145 | -10/Materials | Entered Mines 2152 | -10/Mines | Received a Rocket Launcher from a helpful Derelict 2501 | -10/Mines | Excavation squad dispatched 2501 | -10/Mines | A large section of the Mines collapsed 2751 | -10/Mines | Excavation squad dispatched 2954 | -10/Mines | Discovered new exit (range 4) 3079 | -10/Mines | Found a hidden stash of uninstalled traps 3195 | -10/Mines | Learned location of 1 exit from Materials 3208 | -10/Mines | Discovered new exit (range 10) 3270 | -10/Mines | Met a Derelict who couldn't figure out how to use a Trap Extractor 3936 | -10/Mines | Assisted by bots powering up and referring to "LRC-V3" 4103 | -10/Mines | Deemed a non-threat by the Exiles lab entrance 4103 | -10/Mines | Discovered new exit (range 5) 4336 | -10/Mines | Found a damaged Exp. Sensor Array with a note attached 4343 | -10/Mines | Found Prototype Device 4478 | -10/Mines | A weapon hastily lodged in a ceiling crevice suddenly fell to the ground 4771 | -10/Mines | Entered Exiles 4771 | -10/Exiles | Accompanied by 3 allies 4845 | -10/Exiles | Met 8R-AWN 4903 | -10/Exiles | Met EX-HEX 5047 | -10/Exiles | Met EX-DEC 5118 | -10/Exiles | Visited The Gauntlet 5552 | -10/Exiles | Met EX-BIN 5607 | -10/Exiles | Learned location of Zion (-6) 5773 | -10/Exiles | Discovered new exit (range 11) 6223 | -10/Exiles | Entered Mines 6223 | -9/Mines | Accompanied by 3 allies 6233 | -9/Mines | Learned 2 Materials zone layouts 6247 | -9/Mines | Discovered new exit (range 11) 6703 | -9/Mines | Discovered new exit (range 10) 7817 | -9/Mines | Entered Materials 7817 | -8/Materials | Evolved 4 slots: Propulsion x1, Utility x3 7818 | -8/Materials | Identified exit to Factory 7846 | -8/Materials | Garrison activated, responded to threat 8590 | -8/Materials | Identified Exp. Sensor Array 9772 | -8/Materials | Build established: Scavenger-Mutant 10217 | -8/Materials | First assault squad dispatched 10546 | -8/Materials | Discovered exit to Factory (range 14) 11225 | -8/Materials | Sterilization system engaged 11225 | -8/Materials | Non-combat units ordered to evacuate 11325 | -8/Materials | Combat units ordered to evacuate 11525 | -8/Materials | Ambient heat levels rising (+10) 11675 | -8/Materials | Ambient heat levels rising (+10) 11825 | -8/Materials | Ambient heat levels rising (+10) 11833 | -8/Materials | Build established: Mutant 11898 | -8/Materials | Entered Factory 11898 | -7/Factory | Evolved 2 slots: Utility x2 11990 | -7/Factory | Discovered new exit (range 12) 12822 | -7/Factory | Discovered new exit (range 11) 12896 | -7/Factory | Identified exit to Storage 12896 | -7/Factory | Identified exit to Lower Caves 13300 | -7/Factory | Lost 6 parts (2n2u2w) 13916 | -7/Factory | Discovered new exit (range 15) 14134 | -7/Factory | Repaired Broken Exp. Sensor Array 14417 | -7/Factory | Repaired Missile Launcher 14479 | -7/Factory | Repaired Minigun 15016 | -7/Factory | Entered Lower Caves 15074 | -7/Lower Caves | Identified exit to Lower Caves 16016 | -7/Lower Caves | A Derelict revealed a hidden shortcut to a safe place 16507 | -7/Lower Caves | Attracted the attention of an 0b10 checkpoint 16508 | -7/Lower Caves | Core integrity fell below 50% 16606 | -7/Lower Caves | Spotted B-75 Beast 16644 | -7/Lower Caves | Destroyed B-75 Beast 16989 | -7/Lower Caves | Encountered a Warlord checkpoint 17100 | -7/Lower Caves | Learned Factory trap positions 17492 | -7/Lower Caves | Entered another Lower Caves area 17685 | -7/Lower Caves | Discovered new exit (range 12) 17804 | -7/Lower Caves | Lost 3 parts (2u1w) 18173 | -7/Lower Caves | Learned Factory terminal intel 19016 | -7/Lower Caves | Discovered new exit (range 13) 19019 | -7/Lower Caves | Encountered a Warlord checkpoint 19334 | -7/Lower Caves | Entered Data Miner 19335 | -7/Data Miner | Discovered new exit (range 6) 19387 | -7/Data Miner | Met Data Miner 19433 | -7/Data Miner | Learned location of Section 7 (-2) 19433 | -7/Data Miner | Acquired the access code to Warlord's prototype stash 19476 | -7/Data Miner | Received God Mode back door access code from Data Miner 19549 | -7/Data Miner | Entered Proximity Caves 19606 | -6/Proximity Caves | Spotted B-75 Beast 19608 | -6/Proximity Caves | Escorted by Enhanced Grunt 20482 | -6/Proximity Caves | Discovered new exit (range 12) 20571 | -6/Proximity Caves | Entered Factory 20571 | -6/Factory | Accompanied by 1 ally 20571 | -6/Factory | Evolved 2 slots: Power x1, Utility x1 20572 | -6/Factory | Loaded intel: 91 trap records 20573 | -6/Factory | Loaded intel: 28 terminal locations 21085 | -6/Factory | Discovered new exit (range 10) 21154 | -6/Factory | Identified exit to Extension 21156 | -6/Factory | Entered Extension 21273 | -6/Extension | Rescued A7 21388 | -6/Extension | Identified exit to Cetus 21776 | -6/Extension | Build established: Commander-Mutant 21824 | -6/Extension | Spotted B-75 Beast 21847 | -6/Extension | Spotted B-75 Beast 21858 | -6/Extension | Allies destroyed B-75 Beast 21882 | -6/Extension | Destroyed B-75 Beast 21896 | -6/Extension | Extracted ID and sensor layout for unrecognized location from A7's data core 21993 | -6/Extension | Discovered new exit (range 3) 22064 | -6/Extension | Incoming investigation squad redirected 22118 | -6/Extension | Incoming investigation squad redirected 22136 | -6/Extension | Rescued a captive Derelict 22165 | -6/Extension | Build established: Mutant 22241 | -6/Extension | Destroyed 7 combat bots 22321 | -6/Extension | Energy Cycler disabled 22324 | -6/Extension | Rescued a captive Derelict 22326 | -6/Extension | Rescued a captive Derelict 22331 | -6/Extension | Disrupted transfer network 22331 | -6/Extension | Rescued a captive Derelict 22684 | -6/Extension | Discovered new exit (range 10) 22710 | -6/Extension | Entered Cetus 22710 | -6/Cetus | Accompanied by 8 allies 22743 | -6/Cetus | Spotted Cetus Guard 22743 | -6/Cetus | Spotted Cetus Guard 22749 | -6/Cetus | Spotted Cetus Guard 22751 | -6/Cetus | Spotted Cetus Guard 22767 | -6/Cetus | Allies destroyed Cetus Guard 22790 | -6/Cetus | Destroyed Cetus Guard 22840 | -6/Cetus | System corruption reached 10% 22864 | -6/Cetus | Core integrity fell below 50% 22889 | -6/Cetus | Lost 15 parts (2p5n4u4w) 23030 | -6/Cetus | Cetus Manufacturing Module disabled 23124 | -6/Cetus | Discovered new exit (range 16) 23160 | -6/Cetus | Entered Archives 23180 | -6/Archives | Build established: Scavenger-Mutant 23196 | -6/Archives | Met Zhirov 23202 | -6/Archives | Reinforcements dispatched to Archives 23208 | -6/Archives | Unable to access archive contents 23231 | -6/Archives | Zhirov warped through subspace 23234 | -6/Archives | Discovered new exit (range 15) 23249 | -6/Archives | Zhirov detonated Archives 23250 | -6/Archives | Core integrity fell below 20% 23273 | -6/Archives | Discovered new exit (range 16) 23280 | -6/Archives | Lost 6 parts (1p2n3u) 23291 | -6/Archives | Discovered new exit (range 16) 23715 | -6/Archives | Entered Factory 23715 | -5/Factory | Evolved 2 slots: Propulsion x1, Utility x1 23716 | -5/Factory | Identified exit to Upper Caves 24093 | -5/Factory | Lost 4 parts (2p1u1w) 25515 | -5/Factory | First assault squad dispatched 25765 | -5/Factory | System corruption reached 10% 25785 | -5/Factory | Core integrity fell below 50% 25813 | -5/Factory | Lost 11 parts (2p3n4u2w) 25838 | -5/Factory | Incoming assault squad redirected 25854 | -5/Factory | Discovered new exit (range 6) 25871 | -5/Factory | Entered another Factory area 25871 | -4/Factory | Evolved 2 slots: Utility x2 25993 | -4/Factory | Incoming investigation squad redirected 26102 | -4/Factory | Discovered new exit (range 12) 26121 | -4/Factory | First assault squad dispatched 26139 | -4/Factory | Entered Research 26139 | -3/Research | Evolved 2 slots: Propulsion x1, Weapon x1 26229 | -3/Research | Discovered new exit (range 13) 26259 | -3/Research | Build established: Scout 26305 | -3/Research | Entered another Research area 26305 | -2/Research | Evolved 2 slots: Power x1, Utility x1 26613 | -2/Research | Build established: Generator-Mutant 26844 | -2/Research | Lost 7 parts (2p1n2u2w) 26869 | -2/Research | Spotted B-90 Cyclops 26896 | -2/Research | System corruption reached 10% 26914 | -2/Research | Released all parts (12) 26915 | -2/Research | Core integrity fell below 50% 26941 | -2/Research | Lost 9 parts (2p1n5u1w) 26942 | -2/Research | Core integrity fell below 20% 26992 | -2/Research | Destroyed by P-80 Master with Gamma Rifle Last Messages --------------- 26914_ Released Core Analyzer. 26914_ Released Adv. Terrain Scan Processor. 26914_ Released Imp. Gyrokinetic Inverter. 26914_ Released Lrg. Storage Unit. 26914_ Released System Shield. 26914_ Released Imp. Gyrokinetic Inverter. 26914_ Released Exp. Energy Well. 26914_ Released Adv. Target Analyzer. 26914_ Released Lance. 26916_ B-90 Cyclops activates siege mode. 26917_ Slug penetrates Antimatter Diverter. 26917_ Penetrated by Slug. 26924_ Slug penetrates Wall. 26924_ Slug penetrates Antimatter Diverter. 26939_ Penetrated by Slug. 26940_ D6OXQ=YQOIXCVOMF2ZPWRY0TH=G4B1YWL,ABJZ 26942_ Penetrated by Slug. 26942_ Slug penetrates Wall. 26957_ GXBEOVBTC >MUM,ZA NWM 26977_ System corrupted: Matter fused (-10). Map ----- +----------------------------------------------------+ | | | | | | | | | | | | | | | | | | | | | | | | | | | | | ?????????????????????????????????????????????????? | | ?????????????????????????????????????????????????? | | ?????????????????????????????????????????????????? | | ??????????????########???????????????????????????? | | ??????????????# #???????????????????????????? | | ??????????##### #???????????????????????????? | | ??????????# # #???????????????????????????? | | ??????????# # #???????????????????????????? | | #?????????# =# #???????????????????????????? | | ?????????# #? ????????????????????????????? | | ????????# #+##+########+######???????????????? | | ?######## # p @ ????????? | | # ## # p### ####+###???????????????? | | # "T ###+## #?# #??????????????????????? | | + "" #?# #??????????????????????? | | # ###########?# #??????????????????????? | | # ]#???????????# #??????????????????????? | | ?###/######????????# #??????????????????????? | | ???# #????????# #??????????????????????? | | ????# #????????# #??????????????????????? | | ????# #?###+#### #########?????????? ? | | ?????# ! #?# ##= ]/ #?????????# # | | ?????# ### ## ]/ #?????????# # | | ?????# / ## #?????????# # | | ?????###+###### #?? ??????????# # | | ???????# #????# #####+##########??# + | | ???????# #????# # | | ???????# #????# ##+########/#######??# # | | ##+##### ##???# # ## #?????# # | | ###### / ## #?????# # | | ### ## #?????# # | | #?# ## #?????# # | | #################+## #?# ## #?????# # | | ??????????????? # #?# !## #?????# # | | ????????????? =# #?###+########+######### # | | ????????????# # # | +----------------------------------------------------+ Best States ------------- Heat Dissipation 87 Energy Generation 43 Energy Capacity 1200 Matter Stores 300 Matter Capacity 300 Sight Range 16 Robot Scan Range 20 Terrain Scan Range 16 Terrain Scan Density 210 Jamming Range 14 EM Shielding 2 Armor Coverage 900 Resistance: KI 20 Resistance: EM 15 Power Shielding 66 Evasion (%) 67 Targeting Accuracy 12 Target Analysis 8 Core Analysis 6 Armor Integrity Analysis 30 Recoil Reduction 4 Kinecelleration 30 Salvage Targeting 2 Offensive Hacking 10 Defensive Hacking 10 Trap Extractor Capacity 6 Item Schematics ----------------- Cargo Storage Unit | -10/Materials | Hacked Huge Storage Unit | -10/Materials | Hacked Hcp. Storage Unit | -10/Materials | Hacked Variable Charge Gun | -7/Factory | Hacked Combat Drone Bay | -7/Data Miner | Free Lgt. Regenerative Plating | -7/Data Miner | Free Cld. Cesium-ion Thruster | -7/Data Miner | Free Thermal Defense Suite | -7/Data Miner | Free Antimatter Cannon | -7/Data Miner | Free Field Propulsion Drive | -7/Data Miner | Free Imp. Focal Shield | -7/Data Miner | Free Hvy. Reflective Plating | -7/Data Miner | Free KE Penetrator | -7/Data Miner | Free Adv. VSS Leg | -7/Data Miner | Free Hardcell Cannon | -6/Extension | Hacked Energy Well | -6/Extension | Hacked Imp. Reaction Control System | -6/Extension | Hacked Robot Schematics ------------------ M-22 Extractor | -7/Data Miner | Free S-27 Virus | -7/Data Miner | Free L-41 Fighter | -7/Data Miner | Free Fabricated ------------ Nothing Alien Tech Used ----------------- None Achievements -------------- None Challenges ------------ None Game ------ Seed AssaultSchematicImmobilizer Manual? 0 Play Time 02:52:45 Cumulative 303.7 hours Start 2022.04.22 @ 23:50:51 End 2022.04.23 @ 02:50:32 Sessions 1 Manual Loads 0 Difficulty Rogue Special Mode None Game No. 309 Rogue 309 Adventurer 0 Explorer 0 Win Type - Total 4 Types 4/0/0/0/0/0/0/0/0 Lore% 60 Gallery% 75 Achievement% 63 Wizard Run 0 Options --------- ASCII 0 Keyboard 0 Movement Numpad Keybinds 0 Fullscreen 2 Font 24/Terminus Map View 76x50 Tactical HUD 1 Map Filters NONE Filters NONE Steam 1 RUN: 8a88d1aa-85c6-4d94-8143-71cd87a1d30e